[Event "Titled Tuesday Blitz June 29 2021"]
[White "INDIAN-ELEPHANT"]
[Black "Region_07"]
[WhiteElo "2721"]
[BlackElo "2384"]
[Result "1-0"]
[Round "01"]
[TimeControl "180+1"]
[Date "2021.06.29"]
[WhiteClock "0:01:54"]
[BlackClock "0:00:03"]

1. d4 {[%clk 0:02:59]}  d5 {[%clk 0:02:57]} 2. c4 {[%clk 0:02:59]}  Nc6 {[%clk 0:02:56]} 3. Nf3 {[%clk 0:02:58]}  Bg4 {[%clk 0:02:55]} 4. Nc3 {[%clk 0:02:57]}  e6 {[%clk 0:02:50]} 5. e3 {[%clk 0:02:51]}  Nf6 {[%clk 0:02:48]} 6. Be2 {[%clk 0:02:51]}  dxc4 {[%clk 0:02:46]} 7. Bxc4 {[%clk 0:02:51]}  Bd6 {[%clk 0:02:45]} 8. O-O {[%clk 0:02:50]}  O-O {[%clk 0:02:43]} 9. h3 {[%clk 0:02:51]}  Bh5 {[%clk 0:02:40]} 10. Be2 {[%clk 0:02:50]}  a6 {[%clk 0:02:36]} 11. b3 {[%clk 0:02:40]}  Qe7 {[%clk 0:02:30]} 12. Bb2 {[%clk 0:02:39]}  Rad8 {[%clk 0:02:26]} 13. Nh4 {[%clk 0:02:38]}  Bxe2 {[%clk 0:02:24]} 14. Qxe2 {[%clk 0:02:39]}  Nd5 {[%clk 0:02:01]} 15. Nf3 {[%clk 0:02:38]}  Nxc3 {[%clk 0:01:51]} 16. Bxc3 {[%clk 0:02:39]}  e5 {[%clk 0:01:51]} 17. d5 {[%clk 0:02:29]}  Nb8 {[%clk 0:01:49]} 18. e4 {[%clk 0:02:29]}  Nd7 {[%clk 0:01:49]} 19. Nd2 {[%clk 0:02:26]}  f5 {[%clk 0:01:45]} 20. exf5 {[%clk 0:02:26]}  Rxf5 {[%clk 0:01:46]} 21. Ne4 {[%clk 0:02:26]}  Rdf8 {[%clk 0:01:45]} 22. Rad1 {[%clk 0:02:24]}  Nf6 {[%clk 0:01:35]} 23. Ng3 {[%clk 0:02:19]}  Rg5 {[%clk 0:01:17]} 24. Bd2 {[%clk 0:02:18]}  Rg6 {[%clk 0:01:15]} 25. Nf5 {[%clk 0:02:18]}  Qd7 {[%clk 0:01:13]} 26. Nh4 {[%clk 0:02:18]}  Nxd5 {[%clk 0:00:52]} 27. Nxg6 {[%clk 0:02:18]}  hxg6 {[%clk 0:00:52]} 28. Qc4 {[%clk 0:02:18]}  c6 {[%clk 0:00:52]} 29. Rfe1 {[%clk 0:02:18]}  Qf7 {[%clk 0:00:46]} 30. f3 {[%clk 0:02:17]}  Bc7 {[%clk 0:00:45]} 31. Re4 {[%clk 0:02:14]}  Bb6+ {[%clk 0:00:44]} 32. Kh1 {[%clk 0:02:14]}  Bd4 {[%clk 0:00:39]} 33. f4 {[%clk 0:02:02]}  Qf5 {[%clk 0:00:36]} 34. Rde1 {[%clk 0:02:00]}  Kh7 {[%clk 0:00:12]} 35. fxe5 {[%clk 0:01:57]}  Qf2 {[%clk 0:00:12]} 36. Qxd4 {[%clk 0:01:55]}  Qxd4 {[%clk 0:00:02]} 37. Rxd4 {[%clk 0:01:54]}  Rf2 {[%clk 0:00:03]} 38. Kg1 {[%clk 0:01:54]} 1-0


[Site "https://www.chess.com"]

[Event "Titled Tuesday Blitz June 29 2021"]
[White "Joker_Smile888"]
[Black "GM_Crest"]
[WhiteElo "2407"]
[BlackElo "2785"]
[Result "1/2-1/2"]
[Round "01"]
[TimeControl "180+1"]
[Date "2021.06.29"]
[WhiteClock "0:02:08"]
[BlackClock "0:01:35"]

1. e4 {[%clk 0:03:00]}  e6 {[%clk 0:02:53]} 2. d4 {[%clk 0:02:59]}  d5 {[%clk 0:02:52]} 3. e5 {[%clk 0:02:58]}  c5 {[%clk 0:02:52]} 4. c3 {[%clk 0:02:58]}  Nc6 {[%clk 0:02:51]} 5. Nf3 {[%clk 0:02:57]}  Bd7 {[%clk 0:02:52]} 6. a3 {[%clk 0:02:53]}  Nge7 {[%clk 0:02:50]} 7. Bd3 {[%clk 0:02:52]}  cxd4 {[%clk 0:02:32]} 8. cxd4 {[%clk 0:02:51]}  Qb6 {[%clk 0:02:32]} 9. Bc2 {[%clk 0:02:49]}  Nf5 {[%clk 0:02:28]} 10. Bxf5 {[%clk 0:02:48]}  exf5 {[%clk 0:02:29]} 11. Nc3 {[%clk 0:02:48]}  Be6 {[%clk 0:02:29]} 12. O-O {[%clk 0:02:47]}  h6 {[%clk 0:02:29]} 13. b4 {[%clk 0:02:46]}  Be7 {[%clk 0:02:27]} 14. Na4 {[%clk 0:02:45]}  Qb5 {[%clk 0:02:23]} 15. Nc5 {[%clk 0:02:45]}  b6 {[%clk 0:02:04]} 16. a4 {[%clk 0:02:11]}  Qxb4 {[%clk 0:02:02]} 17. Bd2 {[%clk 0:02:11]}  Qb2 {[%clk 0:01:37]} 18. Rb1 {[%clk 0:02:09]}  Qa2 {[%clk 0:01:36]} 19. Ra1 {[%clk 0:02:08]}  Qb2 {[%clk 0:01:35]} 20. Rb1 {[%clk 0:02:08]} 1/2-1/2


[Site "https://www.chess.com"]

[Event "Titled Tuesday Blitz June 29 2021"]
[White "Khamrakulov_Djurabek"]
[Black "Shuvalov"]
[WhiteElo "2835"]
[BlackElo "2425"]
[Result "1-0"]
[Round "01"]
[TimeControl "180+1"]
[Date "2021.06.29"]
[WhiteClock "0:00:21"]
[BlackClock "0:00:19"]

1. e4 {[%clk 0:03:00]}  e6 {[%clk 0:02:59]} 2. d4 {[%clk 0:03:00]}  d5 {[%clk 0:02:59]} 3. Bd3 {[%clk 0:02:59]}  c5 {[%clk 0:02:57]} 4. Nf3 {[%clk 0:02:43]}  cxd4 {[%clk 0:02:54]} 5. Nxd4 {[%clk 0:02:40]}  e5 {[%clk 0:02:49]} 6. Nf3 {[%clk 0:02:36]}  dxe4 {[%clk 0:02:47]} 7. Bxe4 {[%clk 0:02:29]}  Qxd1+ {[%clk 0:02:48]} 8. Kxd1 {[%clk 0:02:29]}  f5 {[%clk 0:02:46]} 9. Bd5 {[%clk 0:02:26]}  Nf6 {[%clk 0:02:40]} 10. Bb3 {[%clk 0:02:22]}  Ng4 {[%clk 0:02:33]} 11. Ke2 {[%clk 0:02:15]}  e4 {[%clk 0:02:11]} 12. Nd4 {[%clk 0:02:05]}  Bc5 {[%clk 0:02:07]} 13. c3 {[%clk 0:02:05]}  Nc6 {[%clk 0:02:06]} 14. Nxc6 {[%clk 0:01:58]}  bxc6 {[%clk 0:02:07]} 15. f3 {[%clk 0:01:58]}  Ba6+ {[%clk 0:02:03]} 16. c4 {[%clk 0:01:53]}  Nf2 {[%clk 0:01:55]} 17. Rf1 {[%clk 0:01:50]}  Nd3 {[%clk 0:01:54]} 18. fxe4 {[%clk 0:01:47]}  fxe4 {[%clk 0:01:55]} 19. Nc3 {[%clk 0:01:47]}  O-O-O {[%clk 0:01:44]} 20. Bg5 {[%clk 0:01:36]}  Rde8 {[%clk 0:01:40]} 21. Rf7 {[%clk 0:01:31]}  Nxb2 {[%clk 0:01:35]} 22. Bf4 {[%clk 0:01:23]}  Re7 {[%clk 0:01:22]} 23. Rxe7 {[%clk 0:01:14]}  Bxe7 {[%clk 0:01:23]} 24. Nxe4 {[%clk 0:01:13]}  Nxc4 {[%clk 0:01:22]} 25. Kf3 {[%clk 0:01:11]}  Rf8 {[%clk 0:01:20]} 26. Kg3 {[%clk 0:01:11]}  Nb6 {[%clk 0:01:01]} 27. Nd6+ {[%clk 0:00:52]}  Bxd6 {[%clk 0:00:59]} 28. Bxd6 {[%clk 0:00:53]}  Rf1 {[%clk 0:00:58]} 29. Be6+ {[%clk 0:00:49]}  Kb7 {[%clk 0:00:57]} 30. Rxf1 {[%clk 0:00:48]}  Bxf1 {[%clk 0:00:58]} 31. Bf8 {[%clk 0:00:46]}  g6 {[%clk 0:00:54]} 32. Bg8 {[%clk 0:00:43]}  Bc4 {[%clk 0:00:49]} 33. Bxh7 {[%clk 0:00:42]}  Bf7 {[%clk 0:00:47]} 34. Kf4 {[%clk 0:00:40]}  Nc4 {[%clk 0:00:34]} 35. h4 {[%clk 0:00:37]}  a5 {[%clk 0:00:33]} 36. g4 {[%clk 0:00:34]}  a4 {[%clk 0:00:34]} 37. Kg5 {[%clk 0:00:32]}  Ne5 {[%clk 0:00:32]} 38. Kf6 {[%clk 0:00:29]}  Bxa2 {[%clk 0:00:20]} 39. Kxe5 {[%clk 0:00:28]}  Bb1 {[%clk 0:00:20]} 40. Kf6 {[%clk 0:00:26]}  Kb6 {[%clk 0:00:20]} 41. Bxg6 {[%clk 0:00:26]}  Ba2 {[%clk 0:00:18]} 42. h5 {[%clk 0:00:25]}  c5 {[%clk 0:00:19]} 43. h6 {[%clk 0:00:25]}  a3 {[%clk 0:00:19]} 44. h7 {[%clk 0:00:24]}  Bd5 {[%clk 0:00:19]} 45. h8=Q {[%clk 0:00:24]}  a2 {[%clk 0:00:19]} 46. Kg5 {[%clk 0:00:23]}  Kb5 {[%clk 0:00:19]} 47. Qb2+ {[%clk 0:00:23]}  Kc6 {[%clk 0:00:19]} 48. Be8+ {[%clk 0:00:22]}  Kc7 {[%clk 0:00:19]} 49. Bxc5 {[%clk 0:00:21]} 1-0


[Site "https://www.chess.com"]

[Event "Titled Tuesday Blitz June 29 2021"]
[White "LileKoridze"]
[Black "azikom"]
[WhiteElo "2373"]
[BlackElo "2705"]
[Result "0-1"]
[Round "01"]
[TimeControl "180+1"]
[Date "2021.06.29"]
[WhiteClock "0:01:05"]
[BlackClock "0:01:29"]

1. d4 {[%clk 0:03:00]}  d5 {[%clk 0:02:59]} 2. c4 {[%clk 0:02:59]}  c6 {[%clk 0:03:00]} 3. Nf3 {[%clk 0:02:58]}  Nf6 {[%clk 0:03:00]} 4. Nc3 {[%clk 0:02:57]}  dxc4 {[%clk 0:03:00]} 5. a4 {[%clk 0:02:57]}  Bf5 {[%clk 0:03:00]} 6. e3 {[%clk 0:02:56]}  e6 {[%clk 0:02:59]} 7. Bxc4 {[%clk 0:02:57]}  Bb4 {[%clk 0:02:58]} 8. O-O {[%clk 0:02:56]}  O-O {[%clk 0:02:58]} 9. Ne5 {[%clk 0:02:42]}  Nbd7 {[%clk 0:02:53]} 10. Qb3 {[%clk 0:02:34]}  Qb6 {[%clk 0:02:08]} 11. Nxd7 {[%clk 0:01:52]}  Nxd7 {[%clk 0:02:07]} 12. e4 {[%clk 0:01:47]}  Bg6 {[%clk 0:01:52]} 13. d5 {[%clk 0:01:25]}  Nc5 {[%clk 0:01:50]} 14. Qd1 {[%clk 0:01:22]}  exd5 {[%clk 0:01:32]} 15. exd5 {[%clk 0:01:21]}  Rad8 {[%clk 0:01:32]} 16. Be3 {[%clk 0:01:07]}  Qa5 {[%clk 0:01:31]} 17. Qb3 {[%clk 0:01:05]}  Nxb3 {[%clk 0:01:29]} 0-1


[Site "https://www.chess.com"]

[Event "Titled Tuesday Blitz June 29 2021"]
[White "MaxLeto"]
[Black "moro182"]
[WhiteElo "2360"]
[BlackElo "2687"]
[Result "0-1"]
[Round "01"]
[TimeControl "180+1"]
[Date "2021.06.29"]
[WhiteClock "0:00:08"]
[BlackClock "0:00:06"]

1. g4 {[%clk 0:02:41]}  d5 {[%clk 0:02:55]} 2. Bg2 {[%clk 0:02:41]}  Nc6 {[%clk 0:02:48]} 3. g5 {[%clk 0:02:34]}  e5 {[%clk 0:02:40]} 4. h4 {[%clk 0:02:19]}  h6 {[%clk 0:02:38]} 5. d3 {[%clk 0:02:15]}  hxg5 {[%clk 0:02:34]} 6. hxg5 {[%clk 0:02:16]}  Rxh1 {[%clk 0:02:32]} 7. Bxh1 {[%clk 0:02:16]}  Nge7 {[%clk 0:02:27]} 8. Nc3 {[%clk 0:02:06]}  Be6 {[%clk 0:02:23]} 9. e4 {[%clk 0:02:06]}  d4 {[%clk 0:02:13]} 10. Nce2 {[%clk 0:02:07]}  Ng6 {[%clk 0:02:12]} 11. f4 {[%clk 0:01:50]}  exf4 {[%clk 0:02:00]} 12. Nxf4 {[%clk 0:01:51]}  Bb4+ {[%clk 0:01:55]} 13. Kf2 {[%clk 0:01:32]}  Qxg5 {[%clk 0:01:46]} 14. Nf3 {[%clk 0:01:22]}  Qg4 {[%clk 0:01:19]} 15. Nxg6 {[%clk 0:00:43]}  Qxg6 {[%clk 0:01:15]} 16. Bf4 {[%clk 0:00:26]}  O-O-O {[%clk 0:01:14]} 17. a3 {[%clk 0:00:25]}  Bd6 {[%clk 0:01:06]} 18. Qd2 {[%clk 0:00:25]}  Bxf4 {[%clk 0:00:42]} 19. Qxf4 {[%clk 0:00:26]}  f6 {[%clk 0:00:36]} 20. Bg2 {[%clk 0:00:23]}  Rh8 {[%clk 0:00:27]} 21. Rg1 {[%clk 0:00:23]}  Qf7 {[%clk 0:00:27]} 22. Ke1 {[%clk 0:00:22]}  Kb8 {[%clk 0:00:23]} 23. Kd2 {[%clk 0:00:22]}  a6 {[%clk 0:00:23]} 24. Kc1 {[%clk 0:00:22]}  g5 {[%clk 0:00:23]} 25. Qg3 {[%clk 0:00:20]}  Qe7 {[%clk 0:00:22]} 26. Rh1 {[%clk 0:00:11]}  Rxh1+ {[%clk 0:00:21]} 27. Bxh1 {[%clk 0:00:12]}  Qh7 {[%clk 0:00:20]} 28. Bg2 {[%clk 0:00:12]}  Qh5 {[%clk 0:00:20]} 29. Qf2 {[%clk 0:00:11]}  Bh3 {[%clk 0:00:17]} 30. Bxh3 {[%clk 0:00:07]}  Qxh3 {[%clk 0:00:17]} 31. Nxd4 {[%clk 0:00:07]}  Qd7 {[%clk 0:00:08]} 32. Nxc6+ {[%clk 0:00:03]}  Qxc6 {[%clk 0:00:09]} 33. Qf5 {[%clk 0:00:03]}  Qd6 {[%clk 0:00:09]} 34. Kd2 {[%clk 0:00:03]}  Ka7 {[%clk 0:00:08]} 35. b4 {[%clk 0:00:03]}  b6 {[%clk 0:00:08]} 36. Kc3 {[%clk 0:00:03]}  Kb7 {[%clk 0:00:08]} 37. Kb3 {[%clk 0:00:03]}  Ka7 {[%clk 0:00:07]} 38. a4 {[%clk 0:00:04]}  Kb7 {[%clk 0:00:07]} 39. a5 {[%clk 0:00:04]}  b5 {[%clk 0:00:08]} 40. c3 {[%clk 0:00:04]}  Qxd3 {[%clk 0:00:05]} 41. Qxf6 {[%clk 0:00:03]}  g4 {[%clk 0:00:05]} 42. Qf4 {[%clk 0:00:03]}  g3 {[%clk 0:00:04]} 43. Qg4 {[%clk 0:00:03]}  Qb1+ {[%clk 0:00:03]} 44. Ka3 {[%clk 0:00:03]}  Qd3 {[%clk 0:00:04]} 45. Kb3 {[%clk 0:00:02]}  Ka7 {[%clk 0:00:04]} 46. e5 {[%clk 0:00:02]}  Qc4+ {[%clk 0:00:04]} 47. Kb2 {[%clk 0:00:02]}  Qxg4 {[%clk 0:00:03]} 48. Ka3 {[%clk 0:00:01]}  Qe6 {[%clk 0:00:04]} 49. c4 {[%clk 0:00:01]}  bxc4 {[%clk 0:00:03]} 50. b5 {[%clk 0:00:02]}  g2 {[%clk 0:00:04]} 51. b6+ {[%clk 0:00:02]}  cxb6 {[%clk 0:00:04]} 52. axb6+ {[%clk 0:00:03]}  Kxb6 {[%clk 0:00:04]} 53. Ka4 {[%clk 0:00:04]}  Qd5 {[%clk 0:00:04]} 54. Kb4 {[%clk 0:00:05]}  Qb5+ {[%clk 0:00:04]} 55. Kc3 {[%clk 0:00:04]}  Qb3+ {[%clk 0:00:05]} 56. Kd4 {[%clk 0:00:05]}  g1=Q+ {[%clk 0:00:06]} 57. Kd5 {[%clk 0:00:05]}  Qd3+ {[%clk 0:00:06]} 58. Ke6 {[%clk 0:00:06]}  Qgg6+ {[%clk 0:00:06]} 59. Ke7 {[%clk 0:00:07]}  Qdf5 {[%clk 0:00:06]} 60. e6 {[%clk 0:00:07]}  Qgxe6+ {[%clk 0:00:06]} 61. Kd8 {[%clk 0:00:08]}  Qf8# {[%clk 0:00:06]} 0-1


[Site "https://www.chess.com"]

[Event "Titled Tuesday Blitz June 29 2021"]
[White "Mimsychess"]
[Black "tsaruk_maks"]
[WhiteElo "2348"]
[BlackElo "2656"]
[Result "0-1"]
[Round "01"]
[TimeControl "180+1"]
[Date "2021.06.29"]
[WhiteClock "0:00:11"]
[BlackClock "0:00:54"]

1. d4 {[%clk 0:02:59]}  Nf6 {[%clk 0:02:59]} 2. c4 {[%clk 0:02:58]}  c6 {[%clk 0:02:58]} 3. Nf3 {[%clk 0:02:52]}  d5 {[%clk 0:02:58]} 4. e3 {[%clk 0:02:52]}  g6 {[%clk 0:02:57]} 5. Nc3 {[%clk 0:02:50]}  Bg7 {[%clk 0:02:58]} 6. h3 {[%clk 0:02:43]}  O-O {[%clk 0:02:57]} 7. Be2 {[%clk 0:02:42]}  dxc4 {[%clk 0:02:58]} 8. Bxc4 {[%clk 0:02:42]}  b5 {[%clk 0:02:58]} 9. Bd3 {[%clk 0:02:35]}  Bb7 {[%clk 0:02:58]} 10. O-O {[%clk 0:02:28]}  Nbd7 {[%clk 0:02:57]} 11. e4 {[%clk 0:02:24]}  b4 {[%clk 0:02:51]} 12. Ne2 {[%clk 0:02:13]}  c5 {[%clk 0:02:51]} 13. d5 {[%clk 0:02:08]}  c4 {[%clk 0:02:43]} 14. Bc2 {[%clk 0:02:03]}  Nc5 {[%clk 0:02:42]} 15. Ng3 {[%clk 0:02:02]}  e6 {[%clk 0:02:22]} 16. Be3 {[%clk 0:02:00]}  Rc8 {[%clk 0:02:17]} 17. Nd4 {[%clk 0:01:25]}  exd5 {[%clk 0:02:13]} 18. e5 {[%clk 0:01:25]}  Nfe4 {[%clk 0:02:13]} 19. Nxe4 {[%clk 0:01:25]}  dxe4 {[%clk 0:02:14]} 20. Nb5 {[%clk 0:01:04]}  Qb6 {[%clk 0:01:57]} 21. Nd6 {[%clk 0:01:01]}  Bxe5 {[%clk 0:01:47]} 22. Nxc8 {[%clk 0:00:59]}  Rxc8 {[%clk 0:01:48]} 23. Qg4 {[%clk 0:00:48]}  f5 {[%clk 0:01:44]} 24. Qh4 {[%clk 0:00:48]}  Qf6 {[%clk 0:01:44]} 25. Bg5 {[%clk 0:00:41]}  Qf7 {[%clk 0:01:41]} 26. Rad1 {[%clk 0:00:40]}  Bxb2 {[%clk 0:01:28]} 27. Rd6 {[%clk 0:00:39]}  Be5 {[%clk 0:01:26]} 28. Rd8+ {[%clk 0:00:32]}  Rxd8 {[%clk 0:01:26]} 29. Bxd8 {[%clk 0:00:33]}  Nd3 {[%clk 0:01:11]} 30. Ba5 {[%clk 0:00:30]}  Qf6 {[%clk 0:00:59]} 31. Qxf6 {[%clk 0:00:27]}  Bxf6 {[%clk 0:01:00]} 32. Bxd3 {[%clk 0:00:27]}  exd3 {[%clk 0:00:55]} 33. Bxb4 {[%clk 0:00:28]}  c3 {[%clk 0:00:55]} 34. Rc1 {[%clk 0:00:12]}  d2 {[%clk 0:00:55]} 35. Rf1 {[%clk 0:00:11]}  Ba6 {[%clk 0:00:54]} 0-1


[Site "https://www.chess.com"]

[Event "Titled Tuesday Blitz June 29 2021"]
[White "Moon_stone123"]
[Black "jcibarra"]
[WhiteElo "2417"]
[BlackElo "2827"]
[Result "0-1"]
[Round "01"]
[TimeControl "180+1"]
[Date "2021.06.29"]
[WhiteClock "0:00:15"]
[BlackClock "0:00:16"]

1. Nf3 {[%clk 0:03:00]}  d5 {[%clk 0:02:57]} 2. g3 {[%clk 0:03:00]}  g6 {[%clk 0:02:57]} 3. Bg2 {[%clk 0:02:59]}  Bg7 {[%clk 0:02:57]} 4. d4 {[%clk 0:02:59]}  Nd7 {[%clk 0:02:57]} 5. O-O {[%clk 0:02:59]}  Ngf6 {[%clk 0:02:55]} 6. c4 {[%clk 0:02:58]}  dxc4 {[%clk 0:02:54]} 7. Na3 {[%clk 0:02:58]}  Nb6 {[%clk 0:02:54]} 8. Ne5 {[%clk 0:02:48]}  Ng4 {[%clk 0:02:49]} 9. Nf3 {[%clk 0:02:19]}  Nf6 {[%clk 0:02:39]} 10. Nxc4 {[%clk 0:02:14]}  Nxc4 {[%clk 0:02:38]} 11. Qa4+ {[%clk 0:02:14]}  c6 {[%clk 0:02:35]} 12. Qxc4 {[%clk 0:02:14]}  Be6 {[%clk 0:02:35]} 13. Qc2 {[%clk 0:02:14]}  Bd5 {[%clk 0:02:33]} 14. Bf4 {[%clk 0:02:11]}  O-O {[%clk 0:02:32]} 15. Be5 {[%clk 0:02:10]}  Be4 {[%clk 0:02:24]} 16. Qb3 {[%clk 0:02:07]}  Qb6 {[%clk 0:02:22]} 17. Qa3 {[%clk 0:01:56]}  Rfe8 {[%clk 0:02:15]} 18. Rac1 {[%clk 0:01:51]}  Nd5 {[%clk 0:01:58]} 19. Bxg7 {[%clk 0:01:50]}  Kxg7 {[%clk 0:01:58]} 20. Rfd1 {[%clk 0:01:36]}  Rad8 {[%clk 0:01:49]} 21. Ne5 {[%clk 0:01:36]}  Bxg2 {[%clk 0:01:48]} 22. Kxg2 {[%clk 0:01:37]}  a6 {[%clk 0:01:17]} 23. Qb3 {[%clk 0:01:21]}  Qxb3 {[%clk 0:01:14]} 24. axb3 {[%clk 0:01:22]}  Nc7 {[%clk 0:01:11]} 25. e3 {[%clk 0:01:20]}  Rd5 {[%clk 0:01:04]} 26. Nd3 {[%clk 0:01:19]}  Rb5 {[%clk 0:01:02]} 27. b4 {[%clk 0:01:16]}  Nd5 {[%clk 0:01:02]} 28. Rc5 {[%clk 0:01:11]}  Ra8 {[%clk 0:00:58]} 29. Rxb5 {[%clk 0:00:57]}  axb5 {[%clk 0:00:55]} 30. e4 {[%clk 0:00:57]}  Nf6 {[%clk 0:00:48]} 31. f3 {[%clk 0:00:56]}  Ra2 {[%clk 0:00:44]} 32. Kf2 {[%clk 0:00:53]}  Nd7 {[%clk 0:00:43]} 33. Rd2 {[%clk 0:00:40]}  Nb6 {[%clk 0:00:40]} 34. Nc1 {[%clk 0:00:40]}  Ra1 {[%clk 0:00:34]} 35. Nd3 {[%clk 0:00:40]}  Nc4 {[%clk 0:00:32]} 36. Rc2 {[%clk 0:00:38]}  Rh1 {[%clk 0:00:31]} 37. Kg2 {[%clk 0:00:33]}  Rd1 {[%clk 0:00:31]} 38. Nf2 {[%clk 0:00:26]}  Rxd4 {[%clk 0:00:29]} 39. Rc3 {[%clk 0:00:21]}  Nxb2 {[%clk 0:00:28]} 40. Ng4 {[%clk 0:00:19]}  Rxb4 {[%clk 0:00:25]} 41. h4 {[%clk 0:00:16]}  Rd4 {[%clk 0:00:21]} 42. Ne5 {[%clk 0:00:16]}  Nc4 {[%clk 0:00:20]} 43. Ng4 {[%clk 0:00:15]}  h5 {[%clk 0:00:20]} 44. Nf2 {[%clk 0:00:15]}  Rd2 {[%clk 0:00:20]} 45. g4 {[%clk 0:00:14]}  hxg4 {[%clk 0:00:19]} 46. fxg4 {[%clk 0:00:15]}  Ne5 {[%clk 0:00:18]} 47. g5 {[%clk 0:00:15]}  Ng4 {[%clk 0:00:16]} 0-1


[Site "https://www.chess.com"]

[Event "Titled Tuesday Blitz June 29 2021"]
[White "NTBT_DHS"]
[Black "alertakobra"]
[WhiteElo "2709"]
[BlackElo "2382"]
[Result "1-0"]
[Round "01"]
[TimeControl "180+1"]
[Date "2021.06.29"]
[WhiteClock "0:00:26"]
[BlackClock "0:00:12"]

1. e4 {[%clk 0:03:00]}  c5 {[%clk 0:02:59]} 2. Nf3 {[%clk 0:03:00]}  g6 {[%clk 0:02:59]} 3. d4 {[%clk 0:03:00]}  cxd4 {[%clk 0:02:59]} 4. c3 {[%clk 0:03:01]}  d3 {[%clk 0:02:56]} 5. Bxd3 {[%clk 0:03:01]}  Nc6 {[%clk 0:02:55]} 6. h4 {[%clk 0:03:01]}  h6 {[%clk 0:02:52]} 7. Be3 {[%clk 0:02:53]}  Bg7 {[%clk 0:02:51]} 8. Nbd2 {[%clk 0:02:54]}  Nf6 {[%clk 0:02:51]} 9. Nd4 {[%clk 0:02:51]}  d6 {[%clk 0:02:50]} 10. Be2 {[%clk 0:02:49]}  d5 {[%clk 0:02:27]} 11. Nxc6 {[%clk 0:02:37]}  bxc6 {[%clk 0:02:26]} 12. e5 {[%clk 0:02:38]}  Nd7 {[%clk 0:02:25]} 13. e6 {[%clk 0:02:32]}  fxe6 {[%clk 0:02:26]} 14. Qc2 {[%clk 0:02:32]}  Kf7 {[%clk 0:02:22]} 15. h5 {[%clk 0:02:28]}  g5 {[%clk 0:02:10]} 16. Qg6+ {[%clk 0:02:25]}  Kf8 {[%clk 0:02:08]} 17. f4 {[%clk 0:02:16]}  Qe8 {[%clk 0:02:00]} 18. fxg5 {[%clk 0:02:04]}  Qxg6 {[%clk 0:01:58]} 19. hxg6 {[%clk 0:02:05]}  hxg5 {[%clk 0:01:58]} 20. Rxh8+ {[%clk 0:02:04]}  Bxh8 {[%clk 0:01:58]} 21. Bxg5 {[%clk 0:02:04]}  Ne5 {[%clk 0:01:57]} 22. O-O-O {[%clk 0:02:01]}  Nxg6 {[%clk 0:01:56]} 23. Rf1+ {[%clk 0:02:01]}  Kg8 {[%clk 0:01:53]} 24. Bh5 {[%clk 0:01:59]}  Ne5 {[%clk 0:01:44]} 25. Bxe7 {[%clk 0:01:56]}  Ba6 {[%clk 0:01:43]} 26. Rh1 {[%clk 0:01:30]}  Bd3 {[%clk 0:01:42]} 27. Nf3 {[%clk 0:01:28]}  Bh7 {[%clk 0:01:28]} 28. Ng5 {[%clk 0:01:22]}  Bf5 {[%clk 0:01:25]} 29. g4 {[%clk 0:01:00]}  Bg6 {[%clk 0:01:25]} 30. Bd6 {[%clk 0:00:51]}  Nd3+ {[%clk 0:01:23]} 31. Kd2 {[%clk 0:00:45]}  Bxh5 {[%clk 0:01:18]} 32. gxh5 {[%clk 0:00:42]}  Nxb2 {[%clk 0:01:18]} 33. Bc5 {[%clk 0:00:38]}  Na4 {[%clk 0:01:12]} 34. Bd4 {[%clk 0:00:37]}  e5 {[%clk 0:01:12]} 35. Be3 {[%clk 0:00:36]}  Rb8 {[%clk 0:01:05]} 36. Rg1 {[%clk 0:00:34]}  Kf8 {[%clk 0:00:45]} 37. Rf1+ {[%clk 0:00:32]}  Ke8 {[%clk 0:00:46]} 38. Nf7 {[%clk 0:00:31]}  Rb2+ {[%clk 0:00:33]} 39. Kc1 {[%clk 0:00:31]}  Rxa2 {[%clk 0:00:33]} 40. Rf5 {[%clk 0:00:32]}  Re2 {[%clk 0:00:22]} 41. Bg5 {[%clk 0:00:30]}  Bg7 {[%clk 0:00:15]} 42. h6 {[%clk 0:00:30]}  Bxh6 {[%clk 0:00:16]} 43. Nxh6 {[%clk 0:00:29]}  e4 {[%clk 0:00:15]} 44. Bf6 {[%clk 0:00:27]}  Kd7 {[%clk 0:00:13]} 45. Re5 {[%clk 0:00:26]}  Nc5 {[%clk 0:00:12]} 46. Re7+ {[%clk 0:00:26]}  Kd6 {[%clk 0:00:12]} 47. Nf5# {[%clk 0:00:26]} 1-0


[Site "https://www.chess.com"]

[Event "Titled Tuesday Blitz June 29 2021"]
[White "Nastya_Rakhmangulova"]
[Black "Byniolus"]
[WhiteElo "2395"]
[BlackElo "2759"]
[Result "0-1"]
[Round "01"]
[TimeControl "180+1"]
[Date "2021.06.29"]
[WhiteClock "0:00:07"]
[BlackClock "0:01:12"]

1. e4 {[%clk 0:03:00]}  d6 {[%clk 0:03:00]} 2. Nc3 {[%clk 0:03:00]}  Nf6 {[%clk 0:03:00]} 3. g3 {[%clk 0:02:59]}  Bg4 {[%clk 0:03:00]} 4. f3 {[%clk 0:02:53]}  Bh5 {[%clk 0:03:00]} 5. Bg2 {[%clk 0:02:52]}  e6 {[%clk 0:02:59]} 6. Nge2 {[%clk 0:02:53]}  d5 {[%clk 0:02:58]} 7. e5 {[%clk 0:02:40]}  Nfd7 {[%clk 0:02:58]} 8. Nf4 {[%clk 0:02:22]}  Bg6 {[%clk 0:02:58]} 9. Nxg6 {[%clk 0:02:22]}  hxg6 {[%clk 0:02:59]} 10. f4 {[%clk 0:02:23]}  c5 {[%clk 0:02:55]} 11. d3 {[%clk 0:02:23]}  Nc6 {[%clk 0:02:56]} 12. Qe2 {[%clk 0:01:45]}  g5 {[%clk 0:02:55]} 13. Qf2 {[%clk 0:01:41]}  gxf4 {[%clk 0:02:54]} 14. gxf4 {[%clk 0:01:42]}  Be7 {[%clk 0:02:51]} 15. O-O {[%clk 0:01:18]}  g6 {[%clk 0:02:51]} 16. Nb5 {[%clk 0:00:52]}  a6 {[%clk 0:02:44]} 17. Nd6+ {[%clk 0:00:50]}  Bxd6 {[%clk 0:02:43]} 18. exd6 {[%clk 0:00:51]}  Qb8 {[%clk 0:02:40]} 19. c4 {[%clk 0:00:49]}  d4 {[%clk 0:02:28]} 20. f5 {[%clk 0:00:49]}  gxf5 {[%clk 0:02:27]} 21. Bf4 {[%clk 0:00:49]}  e5 {[%clk 0:02:17]} 22. Rae1 {[%clk 0:00:43]}  Qxd6 {[%clk 0:02:15]} 23. Bg3 {[%clk 0:00:42]}  Ne7 {[%clk 0:01:52]} 24. Re2 {[%clk 0:00:22]}  Rb8 {[%clk 0:01:32]} 25. Rfe1 {[%clk 0:00:21]}  f6 {[%clk 0:01:32]} 26. a3 {[%clk 0:00:14]}  Rh7 {[%clk 0:01:23]} 27. h4 {[%clk 0:00:11]}  f4 {[%clk 0:01:21]} 28. Bh2 {[%clk 0:00:09]}  Kd8 {[%clk 0:01:21]} 29. Kh1 {[%clk 0:00:08]}  Kc7 {[%clk 0:01:14]} 30. Bh3 {[%clk 0:00:07]}  Rbh8 {[%clk 0:01:12]} 0-1


[Site "https://www.chess.com"]